[Event "Titled Tuesday Blitz October 5 2021"]
[White "Rasulov, Vugar"]
[Black "Karttunen, Mika"]
[WhiteFideId "13402390"]
[BlackFideId "502081"]
[WhiteElo "2560"]
[BlackElo "2343"]
[Result "1-0"]
[Round "05"]
[TimeControl "180+1"]
[Date "2021.10.05"]
[WhiteClock "0:01:36"]
[BlackClock "0:00:11"]

1. d4 {[%clk 0:03:00]}  Nf6 {[%clk 0:02:59]} 2. c4 {[%clk 0:03:01]}  g6 {[%clk 0:02:58]} 3. Nf3 {[%clk 0:03:01]}  Bg7 {[%clk 0:02:57]} 4. e3 {[%clk 0:03:01]}  O-O {[%clk 0:02:57]} 5. Be2 {[%clk 0:03:00]}  d6 {[%clk 0:02:56]} 6. O-O {[%clk 0:02:59]}  Nbd7 {[%clk 0:02:55]} 7. b4 {[%clk 0:02:58]}  e5 {[%clk 0:02:50]} 8. Bb2 {[%clk 0:02:56]}  Qe7 {[%clk 0:02:43]} 9. Nc3 {[%clk 0:02:54]}  c6 {[%clk 0:02:42]} 10. b5 {[%clk 0:02:53]}  Re8 {[%clk 0:02:28]} 11. a4 {[%clk 0:02:53]}  e4 {[%clk 0:02:19]} 12. Nd2 {[%clk 0:02:52]}  h5 {[%clk 0:02:17]} 13. a5 {[%clk 0:02:49]}  a6 {[%clk 0:02:17]} 14. Qa4 {[%clk 0:02:45]}  c5 {[%clk 0:01:56]} 15. Nb3 {[%clk 0:02:39]}  cxd4 {[%clk 0:00:58]} 16. Nxd4 {[%clk 0:02:40]}  Nc5 {[%clk 0:00:58]} 17. Qa3 {[%clk 0:02:38]}  Bg4 {[%clk 0:00:52]} 18. Rad1 {[%clk 0:02:19]}  Bxe2 {[%clk 0:00:51]} 19. Ndxe2 {[%clk 0:02:20]}  Rec8 {[%clk 0:00:48]} 20. Nf4 {[%clk 0:02:19]}  Nd3 {[%clk 0:00:45]} 21. Nxd3 {[%clk 0:02:14]}  exd3 {[%clk 0:00:45]} 22. Rxd3 {[%clk 0:02:15]}  Rxc4 {[%clk 0:00:45]} 23. Qxd6 {[%clk 0:02:09]}  Qxd6 {[%clk 0:00:39]} 24. Rxd6 {[%clk 0:02:10]}  Rxc3 {[%clk 0:00:34]} 25. Bxc3 {[%clk 0:02:10]}  Ne4 {[%clk 0:00:34]} 26. Bxg7 {[%clk 0:01:58]}  Nxd6 {[%clk 0:00:34]} 27. Be5 {[%clk 0:01:58]}  Nxb5 {[%clk 0:00:34]} 28. Rd1 {[%clk 0:01:59]}  Re8 {[%clk 0:00:34]} 29. f4 {[%clk 0:01:58]}  f6 {[%clk 0:00:30]} 30. Bxf6 {[%clk 0:01:58]}  Rxe3 {[%clk 0:00:30]} 31. Rd7 {[%clk 0:01:58]}  Ra3 {[%clk 0:00:24]} 32. Rxb7 {[%clk 0:01:58]}  Rxa5 {[%clk 0:00:24]} 33. Rg7+ {[%clk 0:01:58]}  Kf8 {[%clk 0:00:24]} 34. Rxg6 {[%clk 0:01:58]}  Kf7 {[%clk 0:00:25]} 35. Rh6 {[%clk 0:01:59]}  Ra4 {[%clk 0:00:24]} 36. Be5 {[%clk 0:01:59]}  Nd4 {[%clk 0:00:22]} 37. Rf6+ {[%clk 0:01:53]}  Ke7 {[%clk 0:00:21]} 38. Kf2 {[%clk 0:01:42]}  Ne6 {[%clk 0:00:20]} 39. Ke3 {[%clk 0:01:37]}  a5 {[%clk 0:00:20]} 40. Rh6 {[%clk 0:01:37]}  Ra2 {[%clk 0:00:19]} 41. Rh7+ {[%clk 0:01:37]}  Ke8 {[%clk 0:00:19]} 42. Bd6 {[%clk 0:01:36]}  Kd8 {[%clk 0:00:17]} 43. f5 {[%clk 0:01:36]}  Ng5 {[%clk 0:00:16]} 44. Be7+ {[%clk 0:01:36]}  Ke8 {[%clk 0:00:16]} 45. Bxg5 {[%clk 0:01:37]}  Rxg2 {[%clk 0:00:16]} 46. h4 {[%clk 0:01:37]}  Ra2 {[%clk 0:00:12]} 47. f6 {[%clk 0:01:36]}  Ra3+ {[%clk 0:00:11]} 48. Ke4 {[%clk 0:01:36]} 1-0


[Site "https://www.chess.com"]

[Event "Titled Tuesday Blitz October 5 2021"]
[White "Riazantsev, Alexander"]
[Black "Khusnutdinov, Rustam"]
[WhiteFideId "4125029"]
[BlackFideId "13701703"]
[WhiteElo "2497"]
[BlackElo "2571"]
[Result "0-1"]
[Round "05"]
[TimeControl "180+1"]
[Date "2021.10.05"]
[WhiteClock "0:00:01"]
[BlackClock "0:00:18"]

1. d4 {[%clk 0:03:00]}  Nf6 {[%clk 0:02:48]} 2. c4 {[%clk 0:03:00]}  g6 {[%clk 0:02:49]} 3. Nc3 {[%clk 0:03:00]}  c5 {[%clk 0:02:47]} 4. d5 {[%clk 0:02:58]}  Bg7 {[%clk 0:02:47]} 5. Nf3 {[%clk 0:02:58]}  O-O {[%clk 0:02:46]} 6. Bg5 {[%clk 0:02:58]}  b5 {[%clk 0:02:29]} 7. cxb5 {[%clk 0:02:58]}  a6 {[%clk 0:02:29]} 8. e3 {[%clk 0:02:58]}  Qa5 {[%clk 0:02:21]} 9. Nd2 {[%clk 0:02:39]}  axb5 {[%clk 0:02:09]} 10. Bxb5 {[%clk 0:02:31]}  Qb4 {[%clk 0:01:51]} 11. Rb1 {[%clk 0:02:03]}  d6 {[%clk 0:01:41]} 12. a3 {[%clk 0:01:52]}  Qa5 {[%clk 0:01:28]} 13. Nc4 {[%clk 0:01:52]}  Qa7 {[%clk 0:01:24]} 14. O-O {[%clk 0:01:51]}  Na6 {[%clk 0:01:20]} 15. Bc6 {[%clk 0:01:46]}  Rb8 {[%clk 0:01:20]} 16. Nb5 {[%clk 0:01:44]}  Rxb5 {[%clk 0:01:15]} 17. Bxb5 {[%clk 0:01:45]}  Nc7 {[%clk 0:01:10]} 18. Bxf6 {[%clk 0:01:40]}  Bxf6 {[%clk 0:01:10]} 19. Bc6 {[%clk 0:01:39]}  Bf5 {[%clk 0:00:58]} 20. Rc1 {[%clk 0:01:31]}  Rb8 {[%clk 0:00:57]} 21. Qe2 {[%clk 0:01:19]}  Rb3 {[%clk 0:00:55]} 22. e4 {[%clk 0:01:17]}  Bc8 {[%clk 0:00:54]} 23. Qc2 {[%clk 0:01:14]}  Qb8 {[%clk 0:00:53]} 24. Ba4 {[%clk 0:01:12]}  Rb7 {[%clk 0:00:52]} 25. e5 {[%clk 0:01:08]}  Bf5 {[%clk 0:00:38]} 26. Qe2 {[%clk 0:01:08]}  dxe5 {[%clk 0:00:34]} 27. d6 {[%clk 0:00:49]}  Ne6 {[%clk 0:00:34]} 28. Bc6 {[%clk 0:00:39]}  Nd4 {[%clk 0:00:34]} 29. Qe3 {[%clk 0:00:20]}  Nxc6 {[%clk 0:00:34]} 30. Qxc5 {[%clk 0:00:21]}  Nd4 {[%clk 0:00:30]} 31. dxe7 {[%clk 0:00:18]}  Rxe7 {[%clk 0:00:27]} 32. Kh1 {[%clk 0:00:16]}  Nb3 {[%clk 0:00:27]} 33. Qd6 {[%clk 0:00:04]}  Qxd6 {[%clk 0:00:27]} 34. Nxd6 {[%clk 0:00:04]}  Nxc1 {[%clk 0:00:28]} 35. Nxf5 {[%clk 0:00:04]}  gxf5 {[%clk 0:00:25]} 36. Rxc1 {[%clk 0:00:05]}  e4 {[%clk 0:00:26]} 37. b4 {[%clk 0:00:03]}  Ra7 {[%clk 0:00:25]} 38. g3 {[%clk 0:00:02]}  Rxa3 {[%clk 0:00:25]} 39. Rc5 {[%clk 0:00:02]}  Kg7 {[%clk 0:00:21]} 40. Rxf5 {[%clk 0:00:02]}  Rb3 {[%clk 0:00:21]} 41. b5 {[%clk 0:00:01]}  Rf3 {[%clk 0:00:18]} 0-1


[Site "https://www.chess.com"]

[Event "Titled Tuesday Blitz October 5 2021"]
[White "Ronka, Erik"]
[Black "Bodnaruk, Anastasia"]
[WhiteFideId "505080"]
[BlackFideId "4181751"]
[WhiteElo "2264"]
[BlackElo "2406"]
[Result "0-1"]
[Round "05"]
[TimeControl "180+1"]
[Date "2021.10.05"]
[WhiteClock "0:00:01"]
[BlackClock "0:00:05"]

1. e4 {[%clk 0:03:00]}  c5 {[%clk 0:02:58]} 2. Nf3 {[%clk 0:03:00]}  d6 {[%clk 0:02:59]} 3. d4 {[%clk 0:03:01]}  cxd4 {[%clk 0:02:59]} 4. Nxd4 {[%clk 0:03:02]}  Nf6 {[%clk 0:02:59]} 5. Bc4 {[%clk 0:03:02]}  e6 {[%clk 0:02:55]} 6. Nc3 {[%clk 0:02:59]}  a6 {[%clk 0:02:52]} 7. Bb3 {[%clk 0:02:59]}  b5 {[%clk 0:02:50]} 8. O-O {[%clk 0:02:58]}  Be7 {[%clk 0:02:51]} 9. Qf3 {[%clk 0:02:58]}  Qb6 {[%clk 0:02:51]} 10. Be3 {[%clk 0:02:57]}  Qb7 {[%clk 0:02:51]} 11. Qg3 {[%clk 0:02:57]}  O-O {[%clk 0:02:50]} 12. Bh6 {[%clk 0:02:54]}  Ne8 {[%clk 0:02:47]} 13. Rad1 {[%clk 0:02:52]}  Kh8 {[%clk 0:02:46]} 14. Bg5 {[%clk 0:02:52]}  Bxg5 {[%clk 0:02:25]} 15. Qxg5 {[%clk 0:02:53]}  Nf6 {[%clk 0:02:25]} 16. e5 {[%clk 0:02:11]}  dxe5 {[%clk 0:02:24]} 17. Qxe5 {[%clk 0:02:12]}  Nbd7 {[%clk 0:02:19]} 18. Qd6 {[%clk 0:02:08]}  Re8 {[%clk 0:02:10]} 19. Nc6 {[%clk 0:02:01]}  Qb6 {[%clk 0:01:59]} 20. Ne5 {[%clk 0:01:52]}  Kg8 {[%clk 0:01:45]} 21. Nxd7 {[%clk 0:01:27]}  Nxd7 {[%clk 0:01:44]} 22. Ne4 {[%clk 0:01:15]}  Qxd6 {[%clk 0:01:34]} 23. Nxd6 {[%clk 0:01:15]}  Re7 {[%clk 0:01:35]} 24. Nxc8 {[%clk 0:00:52]}  Rxc8 {[%clk 0:01:34]} 25. c3 {[%clk 0:00:46]}  Rc6 {[%clk 0:01:27]} 26. a4 {[%clk 0:00:42]}  g6 {[%clk 0:01:21]} 27. axb5 {[%clk 0:00:41]}  axb5 {[%clk 0:01:21]} 28. Rd4 {[%clk 0:00:35]}  Nb6 {[%clk 0:01:13]} 29. Rb4 {[%clk 0:00:28]}  Rc5 {[%clk 0:01:13]} 30. g3 {[%clk 0:00:27]}  Kg7 {[%clk 0:01:00]} 31. Ra1 {[%clk 0:00:27]}  Nd5 {[%clk 0:00:53]} 32. Rd4 {[%clk 0:00:27]}  Nc7 {[%clk 0:00:40]} 33. Ra7 {[%clk 0:00:25]}  e5 {[%clk 0:00:40]} 34. Rd6 {[%clk 0:00:24]}  e4 {[%clk 0:00:38]} 35. Rb6 {[%clk 0:00:19]}  f5 {[%clk 0:00:36]} 36. Rbb7 {[%clk 0:00:19]}  Kf6 {[%clk 0:00:36]} 37. Bd1 {[%clk 0:00:18]}  g5 {[%clk 0:00:34]} 38. Be2 {[%clk 0:00:19]}  f4 {[%clk 0:00:30]} 39. b4 {[%clk 0:00:17]}  Rxc3 {[%clk 0:00:30]} 40. Bxb5 {[%clk 0:00:16]}  Nxb5 {[%clk 0:00:19]} 41. Rxe7 {[%clk 0:00:16]}  Nxa7 {[%clk 0:00:20]} 42. Rxa7 {[%clk 0:00:17]}  Ke5 {[%clk 0:00:19]} 43. Rxh7 {[%clk 0:00:16]}  e3 {[%clk 0:00:19]} 44. fxe3 {[%clk 0:00:16]}  fxe3 {[%clk 0:00:20]} 45. Kf1 {[%clk 0:00:11]}  Rc2 {[%clk 0:00:19]} 46. Ke1 {[%clk 0:00:10]}  Ke4 {[%clk 0:00:13]} 47. h4 {[%clk 0:00:04]}  g4 {[%clk 0:00:08]} 48. Rf7 {[%clk 0:00:01]}  Rg2 {[%clk 0:00:08]} 49. h5 {[%clk 0:00:01]}  Rxg3 {[%clk 0:00:09]} 50. h6 {[%clk 0:00:02]}  Rh3 {[%clk 0:00:09]} 51. h7 {[%clk 0:00:02]}  Rh2 {[%clk 0:00:08]} 52. b5 {[%clk 0:00:01]}  g3 {[%clk 0:00:08]} 53. b6 {[%clk 0:00:01]}  g2 {[%clk 0:00:09]} 54. Rg7 {[%clk 0:00:01]}  Rxh7 {[%clk 0:00:05]} 0-1


[Site "https://www.chess.com"]

[Event "Titled Tuesday Blitz October 5 2021"]
[White "Salimova, Nurgyul"]
[Black "Noboa Silva, Kevin"]
[WhiteFideId "2915138"]
[BlackFideId "3618471"]
[WhiteElo "2071"]
[BlackElo "2161"]
[Result "1-0"]
[Round "05"]
[TimeControl "180+1"]
[Date "2021.10.05"]
[WhiteClock "0:00:11"]
[BlackClock "0:00:02"]

1. e4 {[%clk 0:03:00]}  e6 {[%clk 0:02:57]} 2. d4 {[%clk 0:03:01]}  d5 {[%clk 0:02:56]} 3. Nc3 {[%clk 0:03:01]}  Nf6 {[%clk 0:02:55]} 4. e5 {[%clk 0:02:56]}  Nfd7 {[%clk 0:02:55]} 5. f4 {[%clk 0:02:57]}  c5 {[%clk 0:02:55]} 6. Nf3 {[%clk 0:02:58]}  Be7 {[%clk 0:02:55]} 7. Be3 {[%clk 0:02:57]}  O-O {[%clk 0:02:54]} 8. a3 {[%clk 0:02:56]}  b6 {[%clk 0:02:53]} 9. h4 {[%clk 0:02:53]}  f6 {[%clk 0:02:52]} 10. exf6 {[%clk 0:02:51]}  Nxf6 {[%clk 0:02:52]} 11. Qd2 {[%clk 0:02:47]}  Nc6 {[%clk 0:02:46]} 12. Bb5 {[%clk 0:02:40]}  Nxd4 {[%clk 0:02:33]} 13. Nxd4 {[%clk 0:02:39]}  cxd4 {[%clk 0:02:33]} 14. Bxd4 {[%clk 0:02:40]}  Bd6 {[%clk 0:02:24]} 15. g3 {[%clk 0:02:15]}  Bd7 {[%clk 0:02:00]} 16. Be2 {[%clk 0:01:58]}  Rc8 {[%clk 0:01:56]} 17. h5 {[%clk 0:01:53]}  h6 {[%clk 0:01:45]} 18. O-O-O {[%clk 0:01:52]}  b5 {[%clk 0:01:40]} 19. Bxb5 {[%clk 0:01:32]}  Bxb5 {[%clk 0:01:36]} 20. Nxb5 {[%clk 0:01:33]}  Ne4 {[%clk 0:01:33]} 21. Qe3 {[%clk 0:01:31]}  Bb8 {[%clk 0:01:10]} 22. Nc3 {[%clk 0:01:26]}  Rxc3 {[%clk 0:00:18]} 23. Bxc3 {[%clk 0:01:22]}  Qc8 {[%clk 0:00:13]} 24. Kb1 {[%clk 0:01:18]}  Bd6 {[%clk 0:00:11]} 25. Qd4 {[%clk 0:01:02]}  Rf7 {[%clk 0:00:07]} 26. Rhe1 {[%clk 0:01:01]}  Bc5 {[%clk 0:00:04]} 27. Qe5 {[%clk 0:00:55]}  Rb7 {[%clk 0:00:01]} 28. Rxe4 {[%clk 0:00:54]}  dxe4 {[%clk 0:00:01]} 29. g4 {[%clk 0:00:38]}  Bf8 {[%clk 0:00:02]} 30. g5 {[%clk 0:00:37]}  Qc6 {[%clk 0:00:03]} 31. gxh6 {[%clk 0:00:35]}  Rb5 {[%clk 0:00:04]} 32. Qd4 {[%clk 0:00:25]}  Rd5 {[%clk 0:00:04]} 33. Qg1 {[%clk 0:00:21]}  Rxd1+ {[%clk 0:00:04]} 34. Qxd1 {[%clk 0:00:22]}  gxh6 {[%clk 0:00:04]} 35. Qg4+ {[%clk 0:00:22]}  Kf7 {[%clk 0:00:04]} 36. Qg6+ {[%clk 0:00:21]}  Ke7 {[%clk 0:00:05]} 37. Bf6+ {[%clk 0:00:20]}  Kd6 {[%clk 0:00:04]} 38. Be5+ {[%clk 0:00:20]}  Kd5 {[%clk 0:00:04]} 39. Qg1 {[%clk 0:00:16]}  Qc4 {[%clk 0:00:04]} 40. b3 {[%clk 0:00:13]}  Qc5 {[%clk 0:00:02]} 41. Qd1+ {[%clk 0:00:13]}  Kc6 {[%clk 0:00:03]} 42. Qd8 {[%clk 0:00:13]}  Bd6 {[%clk 0:00:03]} 43. Qc8+ {[%clk 0:00:12]}  Kd5 {[%clk 0:00:03]} 44. Qb7+ {[%clk 0:00:12]}  Qc6 {[%clk 0:00:02]} 45. c4+ {[%clk 0:00:12]}  Kc5 {[%clk 0:00:03]} 46. b4+ {[%clk 0:00:12]}  Kxc4 {[%clk 0:00:02]} 47. Qxc6+ {[%clk 0:00:12]}  Kb3 {[%clk 0:00:02]} 48. Qxd6 {[%clk 0:00:11]} 1-0


[Site "https://www.chess.com"]

[Event "Titled Tuesday Blitz October 5 2021"]
[White "Sarana, Alexey"]
[Black "Indjic, Aleksandar"]
[WhiteFideId "24133795"]
[BlackFideId "911925"]
[WhiteElo "2671"]
[BlackElo "2643"]
[Result "1-0"]
[Round "05"]
[TimeControl "180+1"]
[Date "2021.10.05"]
[WhiteClock "0:00:09"]
[BlackClock "0:00:08"]

1. d4 {[%clk 0:03:00]}  Nf6 {[%clk 0:02:59]} 2. c4 {[%clk 0:03:01]}  c5 {[%clk 0:03:00]} 3. d5 {[%clk 0:03:02]}  e6 {[%clk 0:03:00]} 4. Nc3 {[%clk 0:03:02]}  exd5 {[%clk 0:03:00]} 5. cxd5 {[%clk 0:03:03]}  d6 {[%clk 0:03:01]} 6. e4 {[%clk 0:03:02]}  g6 {[%clk 0:03:01]} 7. Be2 {[%clk 0:03:02]}  a6 {[%clk 0:03:01]} 8. a4 {[%clk 0:03:00]}  Qe7 {[%clk 0:03:01]} 9. Qc2 {[%clk 0:02:57]}  Bg7 {[%clk 0:03:01]} 10. Nf3 {[%clk 0:02:58]}  Ng4 {[%clk 0:02:56]} 11. O-O {[%clk 0:02:55]}  Nd7 {[%clk 0:02:54]} 12. Bf4 {[%clk 0:02:55]}  Nde5 {[%clk 0:02:49]} 13. Nxe5 {[%clk 0:02:53]}  Nxe5 {[%clk 0:02:49]} 14. a5 {[%clk 0:02:48]}  Bd7 {[%clk 0:02:43]} 15. Na4 {[%clk 0:02:47]}  Bxa4 {[%clk 0:02:25]} 16. Rxa4 {[%clk 0:02:46]}  O-O {[%clk 0:02:23]} 17. b4 {[%clk 0:02:39]}  Rac8 {[%clk 0:02:23]} 18. b5 {[%clk 0:02:36]}  axb5 {[%clk 0:02:19]} 19. Bxb5 {[%clk 0:02:37]}  f5 {[%clk 0:02:19]} 20. exf5 {[%clk 0:02:36]}  Rxf5 {[%clk 0:02:18]} 21. Bg3 {[%clk 0:02:34]}  Rcf8 {[%clk 0:02:02]} 22. Be2 {[%clk 0:02:24]}  h5 {[%clk 0:01:56]} 23. h4 {[%clk 0:02:12]}  Kh7 {[%clk 0:01:41]} 24. Re4 {[%clk 0:02:09]}  Qf7 {[%clk 0:01:34]} 25. Qd1 {[%clk 0:01:22]}  Qc7 {[%clk 0:01:23]} 26. Bxe5 {[%clk 0:01:12]}  Rxe5 {[%clk 0:01:21]} 27. Bd3 {[%clk 0:01:10]}  Rxd5 {[%clk 0:00:51]} 28. Re6 {[%clk 0:01:09]}  Kh8 {[%clk 0:00:40]} 29. Qe2 {[%clk 0:01:00]}  c4 {[%clk 0:00:27]} 30. Bxg6 {[%clk 0:00:58]}  c3 {[%clk 0:00:27]} 31. Bc2 {[%clk 0:00:52]}  Qf7 {[%clk 0:00:18]} 32. Qe4 {[%clk 0:00:48]}  Rf5 {[%clk 0:00:18]} 33. Re7 {[%clk 0:00:29]}  Qg6 {[%clk 0:00:16]} 34. Rxb7 {[%clk 0:00:27]}  d5 {[%clk 0:00:15]} 35. Qd3 {[%clk 0:00:27]}  Qg4 {[%clk 0:00:14]} 36. Qe3 {[%clk 0:00:14]}  d4 {[%clk 0:00:13]} 37. Qd3 {[%clk 0:00:12]}  Qxh4 {[%clk 0:00:13]} 38. a6 {[%clk 0:00:12]}  Be5 {[%clk 0:00:13]} 39. g3 {[%clk 0:00:12]}  Qh3 {[%clk 0:00:10]} 40. a7 {[%clk 0:00:10]}  h4 {[%clk 0:00:10]} 41. a8=Q {[%clk 0:00:09]}  hxg3 {[%clk 0:00:11]} 42. Qxf8+ {[%clk 0:00:09]}  Rxf8 {[%clk 0:00:11]} 43. Rh7+ {[%clk 0:00:10]}  Kg8 {[%clk 0:00:08]} 44. Qg6+ {[%clk 0:00:09]} 1-0


[Site "https://www.chess.com"]

[Event "Titled Tuesday Blitz October 5 2021"]
[White "Shkapenko, Pavel"]
[Black "Mezentsev, Ivan"]
[WhiteFideId "4151933"]
[BlackFideId "13706195"]
[WhiteElo "2386"]
[BlackElo "2295"]
[Result "0-1"]
[Round "05"]
[TimeControl "180+1"]
[Date "2021.10.05"]
[WhiteClock "0:00:11"]
[BlackClock "0:00:20"]

1. e4 {[%clk 0:03:00]}  d5 {[%clk 0:02:43]} 2. exd5 {[%clk 0:02:59]}  Nf6 {[%clk 0:02:43]} 3. Bb5+ {[%clk 0:02:59]}  Bd7 {[%clk 0:02:42]} 4. Be2 {[%clk 0:02:59]}  Nxd5 {[%clk 0:02:42]} 5. d4 {[%clk 0:03:00]}  g6 {[%clk 0:02:42]} 6. c4 {[%clk 0:02:59]}  Nb6 {[%clk 0:02:42]} 7. Nc3 {[%clk 0:02:59]}  Bc8 {[%clk 0:02:37]} 8. h3 {[%clk 0:02:40]}  Bg7 {[%clk 0:02:34]} 9. Nf3 {[%clk 0:02:41]}  O-O {[%clk 0:02:34]} 10. Be3 {[%clk 0:02:41]}  Nc6 {[%clk 0:02:34]} 11. d5 {[%clk 0:02:31]}  Na5 {[%clk 0:02:29]} 12. Bd4 {[%clk 0:02:31]}  Bh6 {[%clk 0:02:13]} 13. b3 {[%clk 0:02:22]}  c6 {[%clk 0:02:08]} 14. O-O {[%clk 0:02:08]}  cxd5 {[%clk 0:02:08]} 15. Bxb6 {[%clk 0:02:07]}  axb6 {[%clk 0:02:05]} 16. Nxd5 {[%clk 0:02:08]}  Nc6 {[%clk 0:01:54]} 17. a4 {[%clk 0:01:53]}  e6 {[%clk 0:01:46]} 18. Nc3 {[%clk 0:01:52]}  Bg7 {[%clk 0:01:33]} 19. Rc1 {[%clk 0:01:46]}  e5 {[%clk 0:01:31]} 20. Qxd8 {[%clk 0:01:41]}  Rxd8 {[%clk 0:01:30]} 21. Nd5 {[%clk 0:01:42]}  Be6 {[%clk 0:01:25]} 22. Nc7 {[%clk 0:01:41]}  Rac8 {[%clk 0:01:23]} 23. Nxe6 {[%clk 0:01:42]}  fxe6 {[%clk 0:01:24]} 24. Rfd1 {[%clk 0:01:34]}  e4 {[%clk 0:01:17]} 25. Ng5 {[%clk 0:01:32]}  Bh6 {[%clk 0:01:16]} 26. h4 {[%clk 0:01:32]}  Bxg5 {[%clk 0:01:16]} 27. hxg5 {[%clk 0:01:32]}  Nd4 {[%clk 0:01:16]} 28. Bg4 {[%clk 0:01:33]}  Kf7 {[%clk 0:01:15]} 29. Rc3 {[%clk 0:01:18]}  Nf5 {[%clk 0:01:07]} 30. Rxd8 {[%clk 0:00:57]}  Rxd8 {[%clk 0:01:00]} 31. c5 {[%clk 0:00:57]}  Rc8 {[%clk 0:00:54]} 32. Rh3 {[%clk 0:00:57]}  h5 {[%clk 0:00:48]} 33. gxh6 {[%clk 0:00:54]}  bxc5 {[%clk 0:00:39]} 34. Be2 {[%clk 0:00:41]}  Rh8 {[%clk 0:00:38]} 35. h7 {[%clk 0:00:40]}  Kg7 {[%clk 0:00:36]} 36. Bc4 {[%clk 0:00:39]}  Nd4 {[%clk 0:00:36]} 37. Re3 {[%clk 0:00:39]}  Rxh7 {[%clk 0:00:35]} 38. Rxe4 {[%clk 0:00:39]}  Kf6 {[%clk 0:00:35]} 39. f3 {[%clk 0:00:33]}  Rd7 {[%clk 0:00:31]} 40. Kf2 {[%clk 0:00:27]}  Rd6 {[%clk 0:00:31]} 41. Rf4+ {[%clk 0:00:25]}  Ke7 {[%clk 0:00:29]} 42. Rh4 {[%clk 0:00:23]}  Nf5 {[%clk 0:00:29]} 43. Rh7+ {[%clk 0:00:22]}  Kf6 {[%clk 0:00:29]} 44. Rxb7 {[%clk 0:00:22]}  Rd2+ {[%clk 0:00:29]} 45. Ke1 {[%clk 0:00:18]}  Rxg2 {[%clk 0:00:28]} 46. a5 {[%clk 0:00:19]}  Ra2 {[%clk 0:00:25]} 47. a6 {[%clk 0:00:19]}  Nd4 {[%clk 0:00:25]} 48. f4 {[%clk 0:00:17]}  Kf5 {[%clk 0:00:24]} 49. Rf7+ {[%clk 0:00:14]}  Ke4 {[%clk 0:00:23]} 50. a7 {[%clk 0:00:14]}  Ke3 {[%clk 0:00:22]} 51. Kf1 {[%clk 0:00:14]}  Nf3 {[%clk 0:00:21]} 52. Be2 {[%clk 0:00:11]}  Rxe2 {[%clk 0:00:20]} 0-1


[Site "https://www.chess.com"]

[Event "Titled Tuesday Blitz October 5 2021"]
[White "Svane, Rasmus"]
[Black "Aradhya, Garg"]
[WhiteFideId "4657101"]
[BlackFideId "25006746"]
[WhiteElo "2643"]
[BlackElo "2146"]
[Result "1-0"]
[Round "05"]
[TimeControl "180+1"]
[Date "2021.10.05"]
[WhiteClock "0:00:28"]
[BlackClock "0:00:02"]

1. Nf3 {[%clk 0:03:00]}  d5 {[%clk 0:03:00]} 2. g3 {[%clk 0:03:00]}  Nf6 {[%clk 0:02:59]} 3. Bg2 {[%clk 0:03:01]}  c5 {[%clk 0:02:59]} 4. O-O {[%clk 0:03:01]}  Nc6 {[%clk 0:03:00]} 5. d4 {[%clk 0:03:01]}  g6 {[%clk 0:02:55]} 6. c4 {[%clk 0:02:55]}  cxd4 {[%clk 0:02:52]} 7. Nxd4 {[%clk 0:02:53]}  Bg7 {[%clk 0:02:51]} 8. Nc3 {[%clk 0:02:44]}  Nxd4 {[%clk 0:02:39]} 9. Qxd4 {[%clk 0:02:45]}  Be6 {[%clk 0:02:39]} 10. cxd5 {[%clk 0:02:36]}  O-O {[%clk 0:02:37]} 11. Qd3 {[%clk 0:02:27]}  Bd7 {[%clk 0:02:27]} 12. Be3 {[%clk 0:02:27]}  b5 {[%clk 0:02:20]} 13. Nxb5 {[%clk 0:02:19]}  Qa5 {[%clk 0:02:19]} 14. Nd4 {[%clk 0:02:12]}  Ng4 {[%clk 0:02:02]} 15. Nc6 {[%clk 0:02:04]}  Qa4 {[%clk 0:01:48]} 16. Bc5 {[%clk 0:01:44]}  Ne5 {[%clk 0:01:44]} 17. Qb3 {[%clk 0:01:26]}  Qa6 {[%clk 0:01:31]} 18. Nxe7+ {[%clk 0:01:19]}  Kh8 {[%clk 0:01:29]} 19. Nc6 {[%clk 0:01:14]}  Rfc8 {[%clk 0:01:23]} 20. Rac1 {[%clk 0:01:08]}  Nxc6 {[%clk 0:00:45]} 21. dxc6 {[%clk 0:01:09]}  Bxc6 {[%clk 0:00:46]} 22. Qxf7 {[%clk 0:01:04]}  Bxg2 {[%clk 0:00:38]} 23. Kxg2 {[%clk 0:01:05]}  Qxe2 {[%clk 0:00:37]} 24. Be3 {[%clk 0:00:58]}  Qxb2 {[%clk 0:00:35]} 25. Rxc8+ {[%clk 0:00:55]}  Rxc8 {[%clk 0:00:36]} 26. Qxa7 {[%clk 0:00:55]}  Qc2 {[%clk 0:00:33]} 27. Qb7 {[%clk 0:00:48]}  Rf8 {[%clk 0:00:33]} 28. Qd5 {[%clk 0:00:44]}  h5 {[%clk 0:00:28]} 29. Rc1 {[%clk 0:00:43]}  Qb2 {[%clk 0:00:24]} 30. Rc7 {[%clk 0:00:43]}  h4 {[%clk 0:00:19]} 31. Rxg7 {[%clk 0:00:41]}  Qe2 {[%clk 0:00:04]} 32. Rxg6 {[%clk 0:00:34]}  h3+ {[%clk 0:00:04]} 33. Kxh3 {[%clk 0:00:33]}  Kh7 {[%clk 0:00:03]} 34. Rh6+ {[%clk 0:00:32]}  Kg7 {[%clk 0:00:01]} 35. Qe5+ {[%clk 0:00:27]}  Kf7 {[%clk 0:00:02]} 36. Qe6+ {[%clk 0:00:27]}  Kg7 {[%clk 0:00:02]} 37. Qg6# {[%clk 0:00:28]} 1-0


[Site "https://www.chess.com"]

[Event "Titled Tuesday Blitz October 5 2021"]
[White "Sychev, Klementy"]
[Black "Sanchez, Robert"]
[WhiteFideId "4114060"]
[BlackFideId "2034360"]
[WhiteElo "2615"]
[BlackElo "2247"]
[Result "1-0"]
[Round "05"]
[TimeControl "180+1"]
[Date "2021.10.05"]
[WhiteClock "0:01:26"]
[BlackClock "0:01:19"]

1. Nf3 {[%clk 0:03:00]}  d5 {[%clk 0:02:59]} 2. g3 {[%clk 0:02:55]}  c6 {[%clk 0:03:00]} 3. Bg2 {[%clk 0:02:53]}  Nf6 {[%clk 0:03:00]} 4. O-O {[%clk 0:02:49]}  Bg4 {[%clk 0:03:00]} 5. h3 {[%clk 0:02:44]}  Bxf3 {[%clk 0:02:59]} 6. Bxf3 {[%clk 0:02:44]}  e6 {[%clk 0:03:00]} 7. d4 {[%clk 0:02:43]}  Nbd7 {[%clk 0:03:00]} 8. Nd2 {[%clk 0:02:26]}  Bd6 {[%clk 0:02:59]} 9. e4 {[%clk 0:02:26]}  dxe4 {[%clk 0:02:59]} 10. Nxe4 {[%clk 0:02:27]}  Nxe4 {[%clk 0:02:59]} 11. Bxe4 {[%clk 0:02:28]}  Qc7 {[%clk 0:02:55]} 12. c3 {[%clk 0:02:23]}  h5 {[%clk 0:02:53]} 13. Re1 {[%clk 0:02:05]}  O-O-O {[%clk 0:02:44]} 14. b4 {[%clk 0:02:03]}  Kb8 {[%clk 0:02:42]} 15. a4 {[%clk 0:02:01]}  f5 {[%clk 0:02:15]} 16. Bg2 {[%clk 0:01:56]}  e5 {[%clk 0:02:14]} 17. Bg5 {[%clk 0:01:49]}  Nf6 {[%clk 0:02:10]} 18. dxe5 {[%clk 0:01:48]}  Bxe5 {[%clk 0:02:10]} 19. Qc2 {[%clk 0:01:48]}  Bd6 {[%clk 0:01:46]} 20. Qxf5 {[%clk 0:01:41]}  Rdf8 {[%clk 0:01:46]} 21. Qg6 {[%clk 0:01:39]}  h4 {[%clk 0:01:41]} 22. Bxh4 {[%clk 0:01:35]}  Nd5 {[%clk 0:01:25]} 23. Rad1 {[%clk 0:01:29]}  Rh6 {[%clk 0:01:19]} 24. Re8+ {[%clk 0:01:28]}  Rxe8 {[%clk 0:01:18]} 25. Qxe8+ {[%clk 0:01:28]}  Qc8 {[%clk 0:01:17]} 26. Qxc8+ {[%clk 0:01:27]}  Kxc8 {[%clk 0:01:18]} 27. Bxd5 {[%clk 0:01:26]}  cxd5 {[%clk 0:01:19]} 28. Rxd5 {[%clk 0:01:26]} 1-0


[Site "https://www.chess.com"]